[Event "Grand Prix Romania 1st Stage 2024"]
[Site "Bucuresti"]
[Date "2024.03.24"]
[Round "5.26"]
[White "Craciun, Sasha-Matei"]
[Black "Sofronie, Iulian"]
[Result "1/2-1/2"]
[ECO "C60"]
[WhiteElo "2169"]
[BlackElo "2395"]
[Annotator "TA"]
[PlyCount "318"]
[EventDate "2024.03.20"]
[EventType "swiss"]
[EventCountry "ROU"]
[SourceTitle "playchess.com"]
[Source "ChessBase"]
[SourceQuality "1"]
[TimeControl "900+5"]

{[%evp 9,318,22,35,6,25,30,42,41,39,32,41,29,33,37,36,31,39,32,52,40,51,23,45,53,63,59,54,-8,-8,-168,-35,-28,0,0,0,0,0,0,0,-22,-27,-22,17,12,14,12,55,48,50,35,48,0,0,0,0,0,0,-20,-12,-13,-12,-12,-12,-12,-12,-28,-25,-31,-24,-23,-25,-26,-14,-26,-8,-8,-8,-20,158,139,139,141,168,139,218,61,61,61,61,61,61,61,61,59,59,57,57,57,61,61,61,61,61,61,61,61,76,61,61,61,76,76,76,61,61,37,68,68,68,68,68,68,68,68,68,68,68,68,68,68,68,68,68,68,68,68,68,68,68,68,68,68,68,68,68,68,68,68,68,68,29981,68,68,68,68,68,70,68,68,68,68,68,68,68,68,68,68,68,68,68,68,68,68,68,68,68,68,68,68,68,68,68,70,70,69,62,69,0,70,0,0,0,0,0,0,0,0,0,8,0,0,0,0,0,0,0,0,0,8,0,0,0,8,0,8,8,8,0,0,0,0,0,0,0,0,0,8,8,8,0,0,0,0,0,0,0,0,0,8,0,0,0,0,0,0,0,0,0,0,0,0,0,0,0,0,0,0,0,0,0,0,0,0,0,0,0,0,0,0,0,0,0,0,0,0,0,0,0,0,0,0,0,0,0,0,0,0,0,0,0,0,0,0,0,0,0,0,0,0,0,0,0,0,0,0,0,0,0,0,0,0]} 1. e4 {[%emt 0:00:03]} e5 {[%emt 0:00:01]} 2. Nf3 {[%emt 0:00:04]} Nc6 {[%emt 0:00:02]} 3. Bb5 {[%emt 0:00:01]} a6 {[%emt 0:00:01]} 4. Ba4 {[%emt 0:00:02]} Nge7 {[%emt 0:00:03]} 5. O-O {[%emt 0:00:28]} Ng6 {[%emt 0:00:03]} 6. Re1 {[%emt 0:00:44]} Be7 {[%emt 0:02:07]} 7. Nc3 {[%emt 0:01:10]} O-O {[%emt 0:00:15]} 8. Nd5 {[%emt 0:01:43] White is slightly better.} b5 {[%emt 0:00:52]} 9. Bb3 {[%emt 0:00:20]} Na5 {[%emt 0:00:18]} 10. d4 {[%emt 0:01:57]} Nxb3 {[%emt 0:00:08]} 11. axb3 {[%emt 0:00:02]} d6 {[%emt 0:00:05]} 12. Be3 {[%emt 0:01:21]} Bb7 {[%emt 0:01:53]} 13. c4 {[%emt 0:01:38]} f5 {[%emt 0:02:03]} 14. exf5 {[%emt 0:01:05]} Rxf5 {[%emt 0:00:02]} 15. Qd3 {[%emt 0:01:25][%csl LRb5,LRf5]} Rf8 {[%emt 0:01:55]} 16. Qe4 {[%emt 0:00:14] And now Nxe7+ would win.} (16. Nxe7+ Qxe7 17. Nd2 exd4 18. Qxd4 Rae8 $11) 16... c6 {[%emt 0:01:50]} 17. Nxe7+ {[%emt 0:00:18]} Qxe7 {[%emt 0:00:01]} 18. Bg5 {[%emt 0:02:35]} (18. dxe5 $14 Rae8 19. Bg5) 18... Qf7 $11 {[%emt 0:00:08]} 19. Qe2 $2 {[%emt 0:01:08]} (19. dxe5 $11 {and White is okay.} Nxe5 20. Bh4 (20. Nxe5 Qxf2+ 21. Kh1 Rae8 $11) 20... Nxf3+ (20... bxc4 21. Nxe5 dxe5 22. Qxc4 $16) 21. Qxf3) 19... Rae8 {[%emt 0:00:11]} ({Better is} 19... exd4 $19 {...c5 is the strong threat.} 20. cxb5 c5 (20... Qxb3 21. Nxd4 Qd5 22. Qe6+ Qxe6 23. Nxe6 $16) (20... cxb5 $2 21. Nxd4 Rae8 22. Qd2 $19) 21. bxa6 Bxf3 22. Qxf3 Qxf3 23. gxf3 Ne5 24. Rxe5 dxe5) 20. dxe5 $15 {[%emt 0:00:07]} Nxe5 {[%emt 0:00:45]} (20... c5 {simplifies} 21. cxb5 Bxf3 22. Qxf3 Qxf3 23. gxf3 Nxe5 24. Kg2 axb5 25. Re3 h6) 21. Nxe5 {[%emt 0:00:01]} Rxe5 {[%emt 0:00:01]} 22. Qd2 $36 {[%emt 0:00:14][%mdl 2048] White is pushing.} c5 {[%emt 0:01:39]} 23. Rxe5 {[%emt 0:00:02]} dxe5 {[%emt 0:00:02]} 24. Qe3 {[%emt 0:00:15]} bxc4 {[%emt 0:00:06]} 25. bxc4 {[%emt 0:00:00]} Qxc4 {[%emt 0:00:02]} 26. Qxe5 {[%emt 0:00:08]} Qg4 {[%emt 0:00:34]} 27. Qg3 {[%emt 0:00:15]} Qe6 {[%emt 0:00:36]} 28. h3 {[%emt 0:00:00]} h6 {[%emt 0:00:07]} 29. Be3 {[%emt 0:00:00]} Kh7 {[%emt 0:00:07]} 30. Rd1 {[%emt 0:00:00]} (30. Ra4 $14) 30... Rf6 $1 $11 {[%emt 0:00:05] aiming for ...Rg6.} 31. Qg4 {[%emt 0:00:00]} (31. Bxc5 $2 Rg6 32. Qe3 (32. Qd3 $2 Bxg2 $19) 32... Qf5 $19 (32... Rxg2+ $2 33. Kf1 $19)) 31... Qc6 {[%emt 0:00:05]} 32. f3 {[%emt 0:00:15]} Rg6 {[%emt 0:00:01]} 33. Qe4 {[%emt 0:00:05]} Qc7 {[%emt 0:00:09]} (33... Qxe4 {simplifies} 34. fxe4 Bxe4 35. Rd2 c4) 34. Qf4 {[%emt 0:00:02]} Qxf4 {[%emt 0:01:38]} 35. Bxf4 Bxf3 {[%emt 0:00:05][%mdl 4096] Endgame. KRB-KRB} 36. Rd2 c4 {[%emt 0:00:00]} 37. Kf1 {[%emt 0:00:04]} Be4 {[%emt 0:00:00]} 38. g3 {[%emt 0:00:11]} Rb6 {[%emt 0:00:00]} 39. Be5 {[%emt 0:00:02]} Bd3+ {[%emt 0:00:00]} 40. Kf2 {[%emt 0:00:04]} a5 {[%emt 0:00:00]} 41. Ke3 {[%emt 0:00:01]} g5 {[%emt 0:00:00]} 42. Rf2 {[%emt 0:00:02]} Kg6 {[%emt 0:00:00]} 43. h4 {[%emt 0:00:08]} Bf5 $2 {[%emt 0:00:00] [#]} (43... a4 $11) 44. h5+ $1 $16 {[%emt 0:00:03][%mdl 512]} Kxh5 {[%emt 0:00:00]} 45. Rxf5 {[%emt 0:00:01] Hoping for Rf6. KRB-KR} Kg4 {[%emt 0:00:00]} 46. Rf8 {[%emt 0:00:11]} a4 {[%emt 0:00:00]} (46... Rb5 $16 {might work better.} 47. Ke4 Rb4) 47. Rc8 $2 {[%emt 0:00:04]} ({Only move:} 47. Ra8 $18 Rb5 48. Ke4) 47... Rb3+ $14 {[%emt 0:00:00]} 48. Kf2 {[%emt 0:00:04]} a3 $1 {[%emt 0:00:00]} 49. Rxc4+ {[%emt 0:00:03]} Kh3 {[%emt 0:00:01]} 50. bxa3 {[%emt 0:00:02]} Rxa3 {[%emt 0:00:01]} 51. Rc2 {[%emt 0:00:09]} h5 {[%emt 0:00:05]} 52. Kg1 {[%emt 0:00:20]} h4 {[%emt 0:00:13]} 53. gxh4 {[%emt 0:00:02]} Kxh4 {[%emt 0:00:05]} 54. Kg2 {[%emt 0:00:03]} Ra4 {[%emt 0:00:02]} 55. Bg3+ {[%emt 0:00:10]} Kg4 {[%emt 0:01:13]} 56. Bf2 Rb4 {[%emt 0:00:00]} 57. Be3 {[%emt 0:00:02]} Ra4 {[%emt 0:00:00]} 58. Rd2 {[%emt 0:00:04]} Re4 {[%emt 0:00:00]} 59. Kf2 {[%emt 0:00:02]} Ra4 {[%emt 0:00:00]} 60. Rd5 {[%emt 0:00:01]} Ra2+ {[%emt 0:00:00]} 61. Bd2 {[%emt 0:00:01]} Kh4 {[%emt 0:00:00]} 62. Ke3 {[%emt 0:00:21]} g4 {[%emt 0:00:00]} 63. Kf2 {[%emt 0:00:04]} Rb2 {[%emt 0:00:00]} 64. Kg1 {[%emt 0:00:05]} Kh3 {[%emt 0:00:00]} 65. Rh5+ {[%emt 0:00:05]} Kg3 {[%emt 0:00:00] ( -> ...Rb1+)} 66. Be1+ {[%emt 0:00:01]} Kf3 {[%emt 0:00:00]} 67. Rf5+ {[%emt 0:00:00]} Ke4 {[%emt 0:00:00]} 68. Rf8 {[%emt 0:00:04]} Rb3 {[%emt 0:00:07]} 69. Kg2 {[%emt 0:00:03]} (69. Kf2 $5) 69... Rf3 {[%emt 0:00:01]} 70. Rg8 {[%emt 0:00:02]} Kf5 {[%emt 0:00:02]} 71. Bd2 {[%emt 0:00:11]} Rd3 {[%emt 0:00:03]} 72. Rf8+ {[%emt 0:00:02]} Kg6 {[%emt 0:00:03]} 73. Be1 {[%emt 0:00:08]} Rf3 {[%emt 0:00:01]} 74. Ra8 {[%emt 0:00:01]} ({Of course not} 74. Rxf3 gxf3+ 75. Kxf3 $11) 74... Kf5 {[%emt 0:00:02]} 75. Ra5+ {[%emt 0:00:03]} Kg6 {[%emt 0:00:02]} 76. Bh4 {[%emt 0:00:01]} Rf5 {[%emt 0:00:05]} 77. Ra6+ {[%emt 0:00:05]} Kh5 {[%emt 0:00:05]} 78. Bf2 {[%emt 0:00:02]} Rd5 {[%emt 0:00:02]} 79. Be3 {[%emt 0:00:01][%csl Ge3][%cal Ra6h6]} g3 $2 {[%emt 0:00:10][%mdl 8192] [#]} (79... Kh4 $14) 80. Kxg3 $2 {[%emt 0:00:05]} (80. Kh3 $1 {mates} Rg5 81. Bxg5 Kxg5 82. Re6 (82. Kxg3 Kf5 83. Kf3 Ke5 84. Ra5+ Ke6 85. Kf4 Kd6 86. Kf5 Kd7 87. Rd5+ Kc7) 82... Kf5 83. Re8 g2 84. Kxg2 Kf4 85. Re2) 80... Rd6 $1 {[%emt 0:00:01]} 81. Ra5+ {[%emt 0:00:06]} Kg6 {[%emt 0:00:01]} 82. Kf4 {[%emt 0:00:08]} Rf6+ {[%emt 0:00:03]} 83. Kg4 {[%emt 0:00:00]} Rc6 {[%emt 0:00:01]} 84. Bf4 {[%emt 0:00:06]} Rb6 {[%emt 0:00:03]} 85. Rh5 {[%emt 0:00:01]} Rb4 {[%emt 0:00:04][%cal Ob4f4]} 86. Rh6+ {[%emt 0:00:02]} Kg7 {[%emt 0:00:02][%cal Ob4f4]} 87. Ra6 {[%emt 0:00:04]} Rb5 {[%emt 0:00:05]} 88. Bc7 {[%emt 0:00:11]} Kf7 {[%emt 0:00:02]} 89. Kf4 {[%emt 0:00:00]} Ke7 {[%emt 0:00:04]} 90. Be5 {[%emt 0:00:04]} Kd7 {[%emt 0:00:06]} 91. Ke4 {[%emt 0:00:03]} Ke7 {[%emt 0:00:02]} 92. Rc6 {[%emt 0:00:04]} Kd7 {[%emt 0:00:04]} 93. Rh6 {[%emt 0:00:07]} Rb4+ {[%emt 0:00:04]} 94. Kd5 {[%emt 0:00:04]} Rb5+ {[%emt 0:00:01]} 95. Kd4 $1 {[%emt 0:00:00]} Rb4+ {[%emt 0:00:03]} 96. Kc5 {[%emt 0:00:01]} Rb1 {[%emt 0:00:04]} 97. Bd4 {[%emt 0:00:03]} Ke7 {[%emt 0:00:12]} 98. Kd5 {[%emt 0:00:02]} (98. Kc6 $14) 98... Rb5+ {[%emt 0:00:08]} (98... Rd1 $11) 99. Ke4 {[%emt 0:00:10]} (99. Bc5+ $14 Kf7 100. Rh7+ Kf6 101. Ra7) 99... Kd7 $11 {[%emt 0:00:05] The position is equal.} 100. Be5 {[%emt 0:00:18]} Rb1 {[%emt 0:00:05]} 101. Rd6+ {[%emt 0:00:05]} Ke7 {[%emt 0:00:01]} 102. Rc6 {[%emt 0:00:04]} Kd7 {[%emt 0:00:04]} 103. Ra6 {[%emt 0:00:04]} Rb4+ {[%emt 0:00:25]} 104. Bd4 {[%emt 0:00:07]} Rb5 {[%emt 0:00:02]} 105. Rh6 {[%emt 0:00:11]} Rg5 {[%emt 0:00:10]} 106. Be5 {[%emt 0:00:01]} Rg1 {[%emt 0:00:05]} 107. Kd5 {[%emt 0:00:00]} Rd1+ {[%emt 0:00:07]} 108. Bd4 {[%emt 0:00:01]} Re1 {[%emt 0:01:28]} 109. Rd6+ {[%emt 0:00:38]} Ke7 {[%emt 0:00:00]} 110. Rg6 {[%emt 0:00:02]} Kd7 {[%emt 0:00:00]} 111. Ra6 {[%emt 0:00:07]} Rc1 {[%emt 0:00:00]} 112. Ra7+ {[%emt 0:00:10]} Rc7 {[%emt 0:00:00]} 113. Ra2 {[%emt 0:00:01]} Rc1 {[%emt 0:00:00]} 114. Re2 {[%emt 0:00:06]} Rh1 {[%emt 0:00:00]} 115. Rg2 {[%emt 0:00:04]} Re1 {[%emt 0:00:00]} 116. Rg6 {[%emt 0:00:11]} Re2 {[%emt 0:00:00]} 117. Bc3 {[%emt 0:00:02]} Re3 {[%emt 0:00:00]} 118. Rg7+ {[%emt 0:00:08]} Re7 {[%emt 0:00:00]} 119. Rg3 {[%emt 0:00:01]} Re2 {[%emt 0:00:00]} 120. Bb4 {[%emt 0:00:01]} Kc7 {[%emt 0:00:00]} 121. Bc5 {[%emt 0:00:04]} Rd2+ {[%emt 0:00:00]} 122. Bd4 {[%emt 0:00:01]} Kb7 {[%emt 0:00:00]} 123. Rg7+ {[%emt 0:00:04]} Ka6 {[%emt 0:00:00]} 124. Kc4 {[%emt 0:00:06][%csl Gd4][%cal Rg7a7]} Rc2+ {[%emt 0:00:00]} 125. Kd5 {[%emt 0:00:07]} Rh2 {[%emt 0:00:22]} 126. Ra7+ {[%emt 0:00:11]} Kb5 {[%emt 0:00:01]} 127. Rb7+ {[%emt 0:00:00]} Ka6 {[%emt 0:00:01]} 128. Rb6+ {[%emt 0:00:06]} Ka5 {[%emt 0:00:01]} 129. Rc6 {[%emt 0:00:08] Repels Rc2. White threatens Kc4 and mate.} Kb5 {[%emt 0:00:06]} 130. Rb6+ {[%emt 0:00:02]} Ka5 {[%emt 0:00:01]} 131. Rb8 {[%emt 0:00:07]} Rc2 {[%emt 0:00:19]} 132. Rb1 {[%emt 0:00:16]} Ka6 {[%emt 0:00:04]} 133. Bc5 {[%emt 0:00:02] White wants to mate with Kc6.} Ka5 {[%emt 0:00:25]} 134. Rb3 {[%emt 0:00:07]} Ka4 {[%emt 0:00:05]} 135. Rd3 {[%emt 0:00:00]} Kb5 {[%emt 0:00:05]} 136. Rb3+ {[%emt 0:00:01]} Ka4 {[%emt 0:00:01]} 137. Rb1 {[%emt 0:00:13]} Rd2+ {[%emt 0:00:14]} 138. Kc4 {[%emt 0:00:07]} Rc2+ {[%emt 0:00:01]} 139. Kd4 {[%emt 0:00:01]} Rh2 {[%emt 0:00:11]} 140. Kc3 {[%emt 0:00:02]} Ka5 {[%emt 0:00:15]} 141. Bd4 {[%emt 0:00:06]} Ka6 {[%emt 0:00:07]} 142. Rb6+ {[%emt 0:00:06]} Ka5 {[%emt 0:00:01]} 143. Rb8 {[%emt 0:00:09]} Ka6 {[%emt 0:00:06]} 144. Kc4 {[%emt 0:00:01] Threatening mate with Rb6+.} Rc2+ {[%emt 0:00:04]} 145. Kd5 {[%emt 0:00:01]} Ka5 {[%emt 0:00:15]} 146. Bc5 {[%emt 0:00:00]} Ka4 {[%emt 0:00:04]} 147. Kd4 {[%emt 0:00:01] Against Rc3} Rc1 {[%emt 0:00:03]} 148. Rb2 {[%emt 0:00:06]} ({Less strong is} 148. Rb4+ Ka5 $18) 148... Rd1+ {[%emt 0:00:08]} 149. Kc4 {[%emt 0:00:01][%cal Rb2a2]} Rc1+ {[%emt 0:00:01]} 150. Kd5 {[%emt 0:00:01]} Rd1+ {[%emt 0:00:29]} 151. Bd4 {[%emt 0:00:45]} Rc1 {[%emt 0:00:00]} 152. Ke4 {[%emt 0:00:00]} Ka3 {[%emt 0:00:00]} 153. Rb8 {[%emt 0:00:00] Bb2+ would kill now.} Rh1 {[%emt 0:00:00]} 154. Kd3 {[%emt 0:00:00] Intending Kc4 and mate.} Rh3+ {[%emt 0:00:20]} 155. Kc4 {[%emt 0:00:20][%cal Rb8a8]} Ka2 {[%emt 0:00:00]} 156. Rb2+ {[%emt 0:00:00]} Ka3 {[%emt 0:00:00]} 157. Rb1 {[%emt 0:00:00][%cal Rb1a1]} Ka4 {[%emt 0:00:15]} 158. Kd5 {[%emt 0:00:15]} Ka3 159. Kc4 {[%emt 0:00:05][%cal Rb1a1]} Ka4 {Weighted Error Value: White=0.18 (very precise) /Black=0.18 (very precise) .  Loses game:     	---       	Black=1      Missed win:     	White=1     	---        Mistake:       	White=6     	Black=4      Inaccurate:     	White=1     	Black=4      OK:         	White=46    	Black=37     Best:        	White=3     	Black=8      Strong:       	White=1     	Black=3      Brilliant:      	White=1     	---} 1/2-1/2

[Event "Grand Prix Romania 1st Stage 2024"]
[Site "Bucuresti"]
[Date "2024.03.24"]
[Round "5.27"]
[White "Stoyanov, Tsvetan"]
[Black "Zubcu, Vlad-George"]
[Result "0-1"]
[ECO "D32"]
[WhiteElo "2465"]
[BlackElo "2181"]
[Annotator "TA"]
[PlyCount "106"]
[EventDate "2024.03.20"]
[EventType "swiss"]
[EventCountry "ROU"]
[SourceTitle "playchess.com"]
[Source "ChessBase"]
[SourceQuality "1"]
[TimeControl "900+5"]

{[%evp 21,106,40,44,41,42,48,37,42,36,44,56,40,39,33,53,49,29,38,50,25,17,0,0,0,0,0,0,-36,23,-17,0,-36,-12,-17,-27,-66,-33,-34,-2,-38,-17,-22,-7,-78,-12,-106,-110,-244,-256,-270,-260,-265,-235,-293,-292,-295,-283,-404,-387,-358,-297,-476,-355,-464,0,-446,0,-411,0,-280,-185,-554,-277,-288,-244,-1159,-206,-5820,-6240,-29986,-12562,-6279,-6202,-6195,-6179,-29993,-29994]} 1. c4 {[%emt 0:00:02]} e6 {[%emt 0:00:09]} 2. Nc3 {[%emt 0:00:08]} d5 {[%emt 0:00:01]} 3. e3 {[%emt 0:00:01]} Nf6 {[%emt 0:00:00]} 4. Nf3 {[%emt 0:00:01]} Be7 {[%emt 0:00:01]} 5. b3 {[%emt 0:00:02]} O-O {[%emt 0:00:37]} 6. Bb2 {[%emt 0:00:01]} c5 {[%emt 0:00:01]} 7. cxd5 exd5 {[%emt 0:00:01]} 8. d4 {[%emt 0:00:04]} Nc6 {[%emt 0:00:06]} 9. Be2 {[%emt 0:00:06]} Bf5 {[%emt 0:01:28]} 10. O-O {[%emt 0:00:55]} Rc8 {[%emt 0:00:13]} 11. dxc5 {[%emt 0:00:24]} Bxc5 {[%emt 0:00:24]} 12. Rc1 {[%emt 0:00:01][%cal Oc3d5]} Be7 {[%emt 0:01:18]} 13. Nd4 {[%emt 0:01:49]} Bg6 {[%emt 0:01:22]} 14. Nxc6 {[%emt 0:05:19] White is slightly better.} bxc6 {[%emt 0:00:09]} 15. Na4 {[%emt 0:00:02]} Ne4 {[%emt 0:01:18]} 16. Ba6 {[%emt 0:00:13]} Rc7 {[%emt 0:00:55]} 17. Be5 {[%emt 0:00:02]} Bd6 {[%emt 0:00:25]} 18. Qd4 {[%emt 0:00:28]} Bxe5 {[%emt 0:03:24]} 19. Qxe5 {[%emt 0:00:01]} Re8 {[%emt 0:00:13]} 20. Qb2 {[%emt 0:00:26]} Qd6 {[%emt 0:01:12]} 21. Be2 {[%emt 0:00:46]} h5 {[%emt 0:01:19][%cal Bh7h5,Bh5h4,Bh4h3][%mdl 32]} 22. Qd4 {[%emt 0:01:57]} c5 {[%emt 0:00:52]} 23. Qd1 {[%emt 0:01:38]} h4 {[%emt 0:00:02][%cal Oh4h3]} 24. Bf3 {[%emt 0:00:13]} Re5 {[%emt 0:00:10]} (24... h3 $15) 25. Bxe4 {[%emt 0:01:12]} Bxe4 {[%emt 0:00:00]} 26. Nc3 {[%emt 0:00:18] [#] Hoping for f3.} h3 $1 {[%emt 0:00:27]} 27. Nxe4 {[%emt 0:00:26]} (27. g3 Rc6) 27... Rxe4 {[%emt 0:00:04]} 28. g3 {[%emt 0:00:17]} d4 {[%emt 0:00:26]} 29. Qf3 {[%emt 0:00:07]} Re6 {[%emt 0:00:18]} 30. Rfd1 {[%emt 0:00:10]} Qe5 {[%emt 0:00:02]} (30... d3 $6 31. Qf5 $16) 31. Re1 {[%emt 0:00:13]} (31. exd4 $2 cxd4 32. Rb1 Rc2 $19) (31. g4 {simplifies} dxe3 32. fxe3 Qxe3+ 33. Qxe3 Rxe3 34. Kf2) 31... Rce7 {[%emt 0:00:21]} 32. Rcd1 {[%emt 0:00:10]} (32. Qg4 $1 $11 {remains equal.}) 32... Rf6 {[%emt 0:00:11]} ({Black should play} 32... Qg5 $17 33. Qe2 g6 (33... dxe3 34. Rd8+ Kh7 35. f4 $17)) 33. Qa8+ {[%emt 0:00:04]} (33. Qg4 $11 {keeps the balance.}) 33... Re8 $17 {[%emt 0:00:03] Active counter play!} 34. Qb7 {[%emt 0:00:02]} (34. f4 $17 Qe7 35. Qf3) 34... Qf5 $19 {[%emt 0:00:03]} 35. f4 {[%emt 0:00:08]} dxe3 {[%emt 0:00:07]} 36. Qf3 {[%emt 0:00:05]} Qc2 {[%emt 0:00:06][%cal Of6a6]} 37. Qe2 {[%emt 0:00:02]} Qe4 {[%emt 0:00:05][%cal Og7g5] [#] Strongly threatening ...g5!} 38. Rd3 {[%emt 0:00:11]} Rfe6 {[%emt 0:00:05]} 39. Red1 {[%emt 0:00:01]} (39. Rd7 $142) 39... c4 {[%emt 0:00:03]} 40. Rd4 {[%emt 0:00:06]} Qb7 {[%emt 0:00:10]} 41. Rxc4 {[%emt 0:00:07]} (41. Rd7 Qc6 42. bxc4) 41... Qb5 {[%emt 0:00:08]} 42. Rd3 {[%emt 0:00:07]} Qb7 {[%emt 0:00:05]} 43. Rd1 $1 {[%emt 0:00:05]} Qb5 {[%emt 0:00:02]} 44. Rd3 {[%emt 0:00:02]} Qb7 $40 {[%emt 0:00:01][%mdl 128] Black mounts an attack.} 45. Rd1 $1 {[%emt 0:00:08]} g6 {[%emt 0:00:04]} 46. Rcd4 $2 {[%emt 0:00:02]} (46. f5 Re5 (46... gxf5 47. Rh4 $17) 47. fxg6 fxg6 48. Rd6) 46... Kg7 {[%emt 0:00:04]} 47. Rd7 {[%emt 0:00:08]} Qa6 {[%emt 0:00:12]} 48. R7d3 $2 {[%emt 0:00:07]} (48. Re1 Qc6 49. Rdd1) 48... Kg8 $2 {[%emt 0:00:08]} (48... Rd6 49. f5 Rxd3 (49... gxf5 50. Qb2+ Kg8 51. Rxd6 $17) 50. Rxd3 gxf5) 49. Rc1 $2 {[%emt 0:00:06]} (49. Re1) 49... Rd6 {[%emt 0:00:07]} 50. Rcd1 {[%emt 0:00:04]} Rxd3 {[%emt 0:00:05]} (50... Red8 $142 51. Qxe3 Rxd3 52. Rxd3 Rxd3 (52... Qxd3 $2 53. Qxd3 Rxd3 54. g4 $19) 53. Qe8+ Kh7 (53... Kg7 {gets mated.} 54. Qe5+ Kh7 55. Kf2 Qxa2+ 56. Qe2 Rd2 57. Qxd2 Qxd2+ 58. Kf3 Qxh2 59. Ke4 Qd2 60. b4 h2 61. Ke5 h1=Q 62. f5 Qa1+ 63. Ke4 Qae1+ 64. Kf3 Qee2#) 54. Kf2 Qxa2+ 55. Qe2 Rd2 (55... Qxb3 $2 56. f5 $19) (55... Qxe2+ 56. Kxe2 Rxb3 57. f5 gxf5 58. Kd2 Rb2+ 59. Ke3 Rxh2 60. Kf4 Ra2 61. Kxf5 h2 62. Kf4 h1=Q 63. Ke5 Rd2 64. Kf4 Rd4+ 65. Ke3 Qe4+ 66. Kf2 Rd2+ 67. Kg1 Qg2#) 56. Qxd2 Qxd2+ 57. Kf3 Qxh2 58. Ke4 Qd2 (58... Qxg3 {is a self mate.} 59. f5 h2 60. fxg6+ Kxg6 61. Kd4 h1=Q 62. Kc5 Qe5+ 63. Kb4 Qh4+ 64. Ka3 Qa1#) 59. g4 h2 60. Ke5 h1=Q (60... h1=B 61. f5 g5 62. b4 Kg7 63. f6+ Kg6 64. b5 Qf4#) 61. f5 Qa1+ 62. Ke4 Qae1+ 63. Kf3 Qdf2#) 51. Rxd3 {[%emt 0:00:04]} Qc6 {[%emt 0:00:01]} 52. Rd1 {[%emt 0:00:03]} Qe4 {[%emt 0:00:04] ( -> ...Rc8)} 53. a3 {[%emt 0:00:07]} Rc8 {[%emt 0:00:01] Weighted Error Value: White=0.76/Black=0.84.  Mistake:       	White=8     	Black=3      Inaccurate:     	White=7     	Black=5      OK:         	White=7     	Black=14     Best:        	White=2     	Black=1      Strong:       	White=2     	---} 0-1

[Event "Grand Prix Romania 1st Stage 2024"]
[Site "Bucuresti"]
[Date "2024.03.24"]
[Round "5.28"]
[White "Stoleriu, George"]
[Black "Zubova, Mariya"]
[Result "1-0"]
[ECO "A06"]
[WhiteElo "2391"]
[BlackElo "2146"]
[Annotator "RC"]
[PlyCount "113"]
[EventDate "2024.03.20"]
[EventType "swiss"]
[EventCountry "ROU"]
[SourceTitle "playchess.com"]
[Source "ChessBase"]
[SourceQuality "1"]
[TimeControl "900+5"]

1. b3 {[%emt 0:00:02]} Nf6 {[%emt 0:00:02]} 2. Bb2 {[%emt 0:00:01]} d5 {[%emt 0:00:04]} 3. Nf3 {[%emt 0:00:20]} c5 {[%emt 0:00:12]} 4. e3 {[%emt 0:00:04]} Nc6 {[%emt 0:00:02]} 5. Bb5 {[%emt 0:00:02]} Bd7 {[%emt 0:00:13]} 6. O-O {[%emt 0:00:10]} e6 {[%emt 0:00:12]} 7. d3 {[%emt 0:00:29]} Bd6 {[%emt 0:00:42]} 8. Bxc6 {[%emt 0:00:03]} Bxc6 {[%emt 0:00:11]} 9. Ne5 {[%emt 0:00:01]} Rc8 {[%emt 0:00:37]} 10. Nd2 {[%emt 0:00:14]} O-O {[%emt 0:00:03]} 11. f4 {[%emt 0:02:00]} Nd7 {[%emt 0:01:36]} 12. Nxc6 {[%emt 0:01:29]} Rxc6 {[%emt 0:00:06]} 13. Qg4 {[%emt 0:00:25]} e5 {[%emt 0:00:46]} 14. f5 {[%emt 0:02:19]} Bb8 {[%emt 0:00:43]} 15. e4 {[%emt 0:00:34]} Rh6 {[%emt 0:01:19]} 16. Rae1 {[%emt 0:01:41]} Nf6 {[%emt 0:02:15]} 17. Qf3 {[%emt 0:00:30]} Re8 {[%emt 0:01:52]} 18. g3 {[%emt 0:00:54]} Qa5 {[%emt 0:01:09]} 19. Bc1 {[%emt 0:03:18]} Qxa2 {[%emt 0:00:23]} 20. exd5 {[%emt 0:00:01]} Qxc2 {[%emt 0:00:08]} 21. Re2 {[%emt 0:00:01]} Qc3 {[%emt 0:01:45]} 22. Ne4 {[%emt 0:00:35]} Nxe4 {[%emt 0:00:50]} 23. Bxh6 {[%emt 0:00:03]} Nf6 {[%emt 0:00:13]} 24. Be3 {[%emt 0:00:35]} Qxb3 {[%emt 0:00:21]} 25. Bxc5 {[%emt 0:00:11]} b6 {[%emt 0:00:11]} 26. Bf2 {[%emt 0:00:33]} Nxd5 {[%emt 0:00:05]} 27. Kg2 {[%emt 0:00:23]} a5 {[%emt 0:00:28]} 28. Ree1 {[%emt 0:00:09]} Nb4 {[%emt 0:00:07]} 29. d4 {[%emt 0:00:13]} Qxf3+ {[%emt 0:00:05]} 30. Kxf3 {[%emt 0:00:01]} Nd3 {[%emt 0:00:13]} 31. Re3 {[%emt 0:00:05]} Kf8 {[%emt 0:00:23]} 32. Rb1 {[%emt 0:00:09]} Nb4 {[%emt 0:00:06]} 33. dxe5 {[%emt 0:00:03]} Bxe5 {[%emt 0:00:02]} 34. Re4 {[%emt 0:00:05]} b5 {[%emt 0:00:05]} 35. Bc5+ {[%emt 0:00:03]} Kg8 {[%emt 0:00:02]} 36. Bxb4 {[%emt 0:00:05]} axb4 {[%emt 0:00:01]} 37. Rbxb4 {[%emt 0:00:01]} f6 {[%emt 0:00:04]} 38. Rxb5 {[%emt 0:00:01]} Rd8 {[%emt 0:00:02]} 39. Reb4 {[%emt 0:00:02]} h6 {[%emt 0:00:02]} 40. Rb3 {[%emt 0:00:05]} Kh7 {[%emt 0:00:03]} 41. Rb7 {[%emt 0:00:04]} Rd1 {[%emt 0:00:03]} 42. Rf7 {[%emt 0:00:14]} Rd8 {[%emt 0:00:09]} 43. Rbb7 {[%emt 0:00:02]} Rg8 {[%emt 0:00:01]} 44. Kg4 {[%emt 0:00:06]} Bd4 {[%emt 0:00:03]} 45. Kh5 {[%emt 0:00:05]} Be5 {[%emt 0:00:01]} 46. Rbe7 {[%emt 0:00:03]} Bd4 {[%emt 0:00:01]} 47. g4 {[%emt 0:00:08]} Bc3 {[%emt 0:00:03]} 48. h4 {[%emt 0:00:01]} Bd4 {[%emt 0:00:07]} 49. g5 {[%emt 0:00:04]} hxg5 {[%emt 0:00:03]} 50. hxg5 {[%emt 0:00:01]} fxg5 {[%emt 0:00:23]} 51. f6 {[%emt 0:00:19]} Kh8 {[%emt 0:00:07]} 52. Rxg7 {[%emt 0:00:10]} Rxg7 {[%emt 0:00:04]} 53. fxg7+ {[%emt 0:00:03]} Bxg7 {[%emt 0:00:03]} 54. Kxg5 {[%emt 0:00:05]} Kh7 {[%emt 0:00:05]} 55. Ra7 {[%emt 0:00:06]} Kg8 {[%emt 0:00:27]} 56. Kg6 {[%emt 0:00:01]} Bf8 {[%emt 0:00:03]} 57. Ra8 {[%emt 0:00:01]} 1-0